fUST/lending_fUST_20251017
["ID","MTS","AMOUNT","RATE_DAILY","PERIOD"]
[391621330,1760707421343,-291.979,0.00033968,120]
[391621331,1760707421366,-30000.00000099,0.00033968,120]
[391621332,1760707421392,-2569708.02099901,0.00033968,20]
[391621333,1760707425779,-807022.34658395,0.00033968,20]
[391621334,1760707425803,-2192977.65341605,0.00033968,20]
[391621335,1760707431893,-425385.32828602,0.00033968,20]
[391621336,1760707431915,-60301.0,0.00033968,30]
[391621337,1760707431938,-934872.36,0.00033968,30]
[391621338,1760707431962,-720.83553606,0.00033968,120]
[391621339,1760707431989,-577.34478099,0.00033968,120]
[391621340,1760707432013,-500019.96,0.00033968,30]
[391621341,1760707432037,-915.00755389,0.00033968,120]
[391621345,1760707574223,160.0,0.00015,120]
[391621347,1760707690983,420.53219535,0.00010618,2]
[391621348,1760707692814,11530.87635902,0.000125,2]
[391621350,1760707717685,8484.95640119,0.00027,2]
[391621466,1760707838631,-1000.0,0.00028184,30]
[391621467,1760707838641,-154.96770746,0.000284,2]
[391621468,1760707838651,-2858.7828071,0.0002841,2]
[391621469,1760707838661,-1357.15152555,0.00028498,2]
[391621470,1760707838688,-494.20847445,0.00028498,2]
[391621471,1760707838697,-300.0,0.00028593,2]
[391621472,1760707838707,-30717.7533733,0.00028594,2]
[391621473,1760707838716,-200.18632911,0.0003,2]
[391621474,1760707838724,-1850.0,0.0003,30]
[391621475,1760707838738,-500.0,0.00030136,5]
[391621476,1760707838748,-500.0,0.00030136,5]
[391621477,1760707838757,-500.0,0.00030136,5]
[391621478,1760707838766,-500.0,0.00030136,5]
[391621479,1760707838776,-318.0261609,0.00030136,5]
[391621480,1760707838786,-500.0,0.00030136,5]
[391621481,1760707838795,-3332.89,0.00030136,5]
[391621482,1760707838805,-500.0,0.00030136,5]
[391621483,1760707838814,-500.0,0.00030136,5]
[391621484,1760707838824,-500.0,0.00030136,5]
[391621485,1760707838833,-500.0,0.00030136,5]
[391621486,1760707838842,-500.0,0.00030136,5]
[391621487,1760707838851,-500.0,0.00030136,5]
[391621488,1760707838861,-500.0,0.00030136,5]
[391621489,1760707838872,-500.0,0.00030136,5]
[391621490,1760707838883,-498.5,0.00030136,5]
[391621491,1760707838894,-500.0,0.00030136,5]
[391621492,1760707838903,-850.53,0.00030136,2]
[391621493,1760707838912,-500.0,0.00030136,5]
[391621494,1760707838922,-500.0,0.00030136,5]
[391621495,1760707838932,-500.0,0.00030136,5]
[391621496,1760707838942,-500.0,0.00030136,5]
[391621497,1760707838951,-1000.0,0.00030136,2]
[391621498,1760707838961,-578.95,0.00030136,5]
[391621499,1760707838972,-500.0,0.00030136,5]
[391621500,1760707838986,-557.47,0.00030136,2]
[391621501,1760707838997,-3604.28,0.00030136,5]
[391621502,1760707839008,-500.0,0.00030136,5]
[391621503,1760707839018,-500.0,0.00030136,5]
[391621504,1760707839029,-500.0,0.00030136,5]
[391621505,1760707839039,-500.0,0.00030136,5]
[391621506,1760707839048,-286.1472086,0.00030136,5]
[391621507,1760707839058,-500.0,0.00030136,5]
[391621508,1760707839068,-594.41,0.00030136,5]
[391621509,1760707839079,-729.16,0.00030136,5]
[391621510,1760707839091,-500.0,0.00030136,5]
[391621511,1760707839102,-500.0,0.00030136,5]
[391621512,1760707839114,-641.78,0.00030136,3]
[391621513,1760707839124,-173.73,0.00030136,5]
[391621514,1760707839135,-500.0,0.00030136,5]
[391621515,1760707839146,-500.0,0.00030136,5]
[391621516,1760707839158,-500.0,0.00030136,5]
[391621517,1760707839169,-500.0,0.00030136,5]
[391621518,1760707839180,-500.0,0.00030136,5]
[391621519,1760707839191,-500.0,0.00030136,5]
[391621520,1760707839201,-521.27,0.00030136,5]
[391621521,1760707839211,-500.0,0.00030136,5]
[391621522,1760707839222,-500.0,0.00030136,5]
[391621523,1760707839235,-1522.15,0.00030136,5]
[391621524,1760707839246,-348.632262,0.00030137,120]
[391621525,1760707839259,-376.76897619,0.00030289,7]
[391621526,1760707839271,-828.04,0.000304,3]
[391621527,1760707839280,-414.02,0.000304,3]
[391621528,1760707839291,-207.01,0.000304,3]
[391621529,1760707839300,-621.05,0.000304,3]
[391621530,1760707839310,-57947.059563,0.000304,2]
[391621531,1760707839321,-413.68744436,0.000304,2]
[391621532,1760707839330,-500.0,0.00030409,5]
[391621533,1760707839340,-500.0,0.00030409,5]
[391621534,1760707839350,-500.0,0.00030409,5]
[391621535,1760707839360,-503.01295635,0.00030409,5]
[391621536,1760707839369,-500.0,0.00030409,5]
[391621537,1760707839379,-500.0,0.00030409,5]
[391621538,1760707839388,-500.0,0.00030409,5]
[391621539,1760707839397,-504.78775358,0.00030409,5]
[391621540,1760707839406,-500.0,0.0003041,5]
[391621541,1760707839416,-500.0,0.0003041,5]
[391621542,1760707839425,-500.0,0.0003041,5]
[391621543,1760707839435,-500.0,0.0003041,5]
[391621544,1760707839445,-500.0,0.0003041,5]
[391621545,1760707839454,-3332.89,0.0003041,5]
[391621546,1760707839464,-500.0,0.0003041,5]
[391621547,1760707839472,-500.0,0.0003041,5]
[391621548,1760707839485,-500.0,0.0003041,5]
[391621549,1760707839494,-500.0,0.0003041,5]
[391621550,1760707839503,-500.0,0.0003041,5]
[391621551,1760707839512,-502.6625881,0.0003041,5]
[391621552,1760707839521,-500.0,0.0003041,5]
[391621553,1760707839530,-500.0,0.0003041,5]
[391621554,1760707839539,-500.0,0.0003041,5]
[391621555,1760707839549,-850.53,0.0003041,2]
[391621556,1760707839558,-549.74984679,0.0003041,5]
[391621557,1760707839567,-500.0,0.0003041,5]
[391621558,1760707839576,-500.0,0.0003041,5]
[391621559,1760707839585,-500.0,0.0003041,5]
[391621560,1760707839594,-1000.0,0.0003041,2]
[391621561,1760707839603,-578.95,0.0003041,5]
[391621562,1760707839612,-500.0,0.0003041,5]
[391621563,1760707839622,-557.47,0.0003041,2]
[391621564,1760707839631,-3604.28,0.0003041,5]
[391621565,1760707839640,-500.0,0.0003041,5]
[391621566,1760707839649,-500.0,0.0003041,5]
[391621567,1760707839659,-500.0,0.0003041,5]
[391621568,1760707839668,-500.0,0.0003041,5]
[391621569,1760707839677,-500.0,0.0003041,5]
[391621570,1760707839687,-594.41,0.0003041,5]
[391621571,1760707839696,-729.16,0.0003041,5]
[391621572,1760707839705,-500.0,0.0003041,5]
[391621573,1760707839715,-500.0,0.0003041,5]
[391621574,1760707839724,-641.78,0.0003041,3]
[391621575,1760707839736,-500.0,0.0003041,5]
[391621576,1760707839745,-566.99881915,0.0003041,5]
[391621577,1760707839754,-500.0,0.0003041,5]
[391621578,1760707839764,-500.0,0.0003041,5]
[391621579,1760707839774,-500.0,0.0003041,5]
[391621580,1760707839783,-500.0,0.0003041,5]
[391621581,1760707839792,-521.27,0.0003041,5]
[391621582,1760707839802,-500.0,0.0003041,5]
[391621583,1760707839811,-181.69401206,0.0003041,5]
[391621584,1760707839820,-1522.15,0.0003041,5]
[391621585,1760707839829,-481.13614356,0.00030473,5]
[391621586,1760707839839,-500.0,0.00030473,5]
[391621587,1760707839848,-229.80515195,0.00030473,5]
[391621588,1760707839857,-501.09043019,0.00030473,5]
[391621589,1760707839867,-500.0,0.00030473,5]
[391621590,1760707839876,-2027.98,0.000305,2]
[391621591,1760707839885,-502.55504406,0.00030673,2]
[391621592,1760707839894,-502.57658769,0.00030673,5]
[391621593,1760707839903,-505.7437,0.00030673,5]
[391621594,1760707839912,-500.0,0.00030673,5]
[391621595,1760707839921,-500.0,0.00030683,5]
[391621596,1760707839931,-500.0,0.00030683,5]
[391621597,1760707839940,-500.0,0.00030683,5]
[391621598,1760707839950,-500.0,0.00030683,5]
[391621599,1760707839959,-506.58673721,0.00030683,5]
[391621600,1760707839968,-500.0,0.00030684,5]
[391621601,1760707839980,-500.0,0.00030684,5]
[391621602,1760707839990,-500.0,0.00030684,5]
[391621603,1760707839998,-500.0,0.00030684,5]
[391621604,1760707840007,-500.0,0.00030684,5]
[391621605,1760707840017,-3332.89,0.00030684,5]
[391621606,1760707840026,-500.0,0.00030684,5]
[391621607,1760707840035,-500.0,0.00030684,5]
[391621608,1760707840044,-500.0,0.00030684,5]
[391621609,1760707840053,-500.0,0.00030684,5]
[391621610,1760707840063,-574.67229913,0.00030684,5]
[391621611,1760707840072,-500.0,0.00030684,5]
[391621612,1760707840082,-500.0,0.00030684,5]
[391621613,1760707840093,-500.0,0.00030684,5]
[391621614,1760707840102,-850.53,0.00030684,2]
[391621615,1760707840111,-500.0,0.00030684,5]
[391621616,1760707840120,-500.0,0.00030684,5]
[391621618,1760707840219,-500.0,0.00030684,5]
[391621619,1760707840233,-1000.0,0.00030684,2]
[391621620,1760707840243,-578.95,0.00030684,5]
[391621621,1760707840255,-500.0,0.00030684,5]
[391621622,1760707840265,-557.47,0.00030684,2]
[391621623,1760707840274,-3604.28,0.00030684,5]
[391621624,1760707840284,-500.0,0.00030684,5]
[391621625,1760707840296,-500.0,0.00030684,5]
[391621626,1760707840309,-500.0,0.00030684,5]
[391621627,1760707840323,-500.0,0.00030684,5]
[391621628,1760707840332,-500.0,0.00030684,5]
[391621629,1760707840342,-594.41,0.00030684,5]
[391621630,1760707840351,-729.16,0.00030684,5]
[391621631,1760707840361,-279.91,0.00030684,5]
[391621632,1760707840370,-500.0,0.00030684,5]
[391621633,1760707840380,-641.78,0.00030684,3]
[391621634,1760707840389,-500.0,0.00030684,5]
[391621635,1760707840398,-500.0,0.00030684,5]
[391621636,1760707840407,-500.0,0.00030684,5]
[391621637,1760707840417,-500.0,0.00030684,5]
[391621638,1760707840426,-500.0,0.00030684,5]
[391621639,1760707840435,-521.27,0.00030684,5]
[391621640,1760707840445,-500.0,0.00030684,5]
[391621641,1760707840454,-1522.15,0.00030684,5]
[391621642,1760707840464,-57947.059563,0.00030848,2]
[391621643,1760707840474,-413.68744436,0.00030848,2]
[391621644,1760707840488,-500.0,0.00030858,5]
[391621645,1760707840498,-502.5569066,0.00030858,5]
[391621646,1760707840507,-420.0,0.00030861,2]
[391621647,1760707840517,-500.0,0.00030957,5]
[391621649,1760707840526,-500.0,0.00030957,5]
[391621650,1760707840535,-500.0,0.00030957,5]
[391621651,1760707840545,-500.0,0.00030957,5]
[391621652,1760707840555,-508.43397608,0.00030957,5]
[391621653,1760707840564,-603.94031266,0.00030958,5]
[391621654,1760707840574,-500.0,0.00030958,5]
[391621655,1760707840583,-500.0,0.00030958,5]
[391621656,1760707840592,-500.0,0.00030958,5]
[391621657,1760707840602,-500.0,0.00030958,5]
[391621658,1760707840611,-3332.89,0.00030958,5]
[391621659,1760707840621,-544.87221642,0.00030958,5]
[391621660,1760707840630,-500.0,0.00030958,5]
[391621661,1760707840639,-500.0,0.00030958,5]
[391621662,1760707840648,-500.0,0.00030958,5]
[391621663,1760707840657,-500.0,0.00030958,5]
[391621664,1760707840667,-500.0,0.00030958,5]
[391621665,1760707840676,-500.0,0.00030958,5]
[391621666,1760707840686,-850.53,0.00030958,2]
[391621667,1760707840695,-500.0,0.00030958,5]
[391621668,1760707840704,-500.0,0.00030958,5]
[391621669,1760707840712,-500.0,0.00030958,5]
[391621670,1760707840722,-1000.0,0.00030958,2]
[391621671,1760707840734,-578.95,0.00030958,5]
[391621672,1760707840743,-500.0,0.00030958,5]
[391621673,1760707840753,-557.47,0.00030958,2]
[391621674,1760707840762,-3604.28,0.00030958,5]
[391621675,1760707840771,-500.0,0.00030958,5]
[391621676,1760707840780,-500.0,0.00030958,5]
[391621677,1760707840790,-500.0,0.00030958,5]
[391621678,1760707840799,-500.0,0.00030958,5]
[391621679,1760707840809,-500.0,0.00030958,5]
[391621680,1760707840819,-594.41,0.00030958,5]
[391621681,1760707840828,-729.16,0.00030958,5]
[391621682,1760707840837,-500.0,0.00030958,5]
[391621683,1760707840847,-641.78,0.00030958,3]
[391621684,1760707840856,-500.0,0.00030958,5]
[391621685,1760707840865,-500.0,0.00030958,5]
[391621686,1760707840875,-500.0,0.00030958,5]
[391621687,1760707840884,-500.0,0.00030958,5]
[391621688,1760707840894,-500.0,0.00030958,5]
[391621689,1760707840903,-521.27,0.00030958,5]
[391621690,1760707840912,-500.0,0.00030958,5]
[391621691,1760707840922,-1522.15,0.00030958,5]
[391621692,1760707840931,-160.0,0.00031,2]
[391621693,1760707840940,-576.29357266,0.00031021,5]
[391621694,1760707840950,-3702.73,0.00031089,2]
[391621695,1760707840959,-1844.95357478,0.00031121,2]
[391621696,1760707840968,-2204.79368685,0.00031132,2]
[391621697,1760707840980,-57947.059563,0.00031221,2]
[391621698,1760707840989,-413.68744436,0.00031221,2]
[391621699,1760707840999,-150.97,0.00031229,15]
[391621700,1760707841008,-500.0,0.00031231,5]
[391621701,1760707841017,-500.0,0.00031231,5]
[391621702,1760707841027,-500.0,0.00031231,5]
[391621703,1760707841036,-500.0,0.00031232,5]
[391621704,1760707841045,-500.0,0.00031232,5]
[391621705,1760707841054,-500.0,0.00031232,5]
[391621706,1760707841064,-500.0,0.00031232,5]
[391621707,1760707841073,-3332.89,0.00031232,5]
[391621708,1760707841083,-500.0,0.00031232,5]
[391621709,1760707841092,-500.0,0.00031232,5]
[391621710,1760707841102,-500.0,0.00031232,5]
[391621711,1760707841111,-500.0,0.00031232,5]
[391621712,1760707841121,-500.0,0.00031232,5]
[391621714,1760707841131,-500.0,0.00031232,5]
[391621715,1760707841141,-850.53,0.00031232,2]
[391621717,1760707841150,-500.0,0.00031232,5]
[391621719,1760707841160,-500.0,0.00031232,5]
[391621720,1760707841169,-500.0,0.00031232,5]
[391621721,1760707841178,-203.35837227,0.00031232,2]
[391621722,1760707841187,-578.95,0.00031232,5]
[391621723,1760707841197,-500.0,0.00031232,5]
[391621724,1760707841206,-557.47,0.00031232,2]
[391621725,1760707841215,-3604.28,0.00031232,5]
[391621726,1760707841225,-500.0,0.00031232,5]
[391621727,1760707841238,-500.0,0.00031232,5]
[391621728,1760707841254,-500.0,0.00031232,5]
[391621729,1760707841264,-500.0,0.00031232,5]
[391621730,1760707841273,-500.0,0.00031232,5]
[391621731,1760707841282,-594.41,0.00031232,5]
[391621732,1760707841292,-729.16,0.00031232,5]
[391621733,1760707841302,-282.84698704,0.00031232,5]
[391621734,1760707841312,-641.78,0.00031232,3]
[391621735,1760707841324,-500.0,0.00031232,5]
[391621736,1760707841334,-500.0,0.00031232,5]
[391621737,1760707841343,-500.0,0.00031232,5]
[391621738,1760707841352,-500.0,0.00031232,5]
[391621739,1760707841361,-500.0,0.00031232,5]
[391621740,1760707841370,-521.27,0.00031232,5]
[391621741,1760707841380,-500.0,0.00031232,5]
[391621742,1760707841390,-1522.15,0.00031232,5]
[391621743,1760707841400,-150.97,0.00031238,15]
[391621744,1760707841409,-150.97,0.00031238,15]
[391621745,1760707841419,-501.75064816,0.00031273,5]
[391621746,1760707841428,-506.60645978,0.00031273,5]
[391621747,1760707841437,-500.0,0.00031273,5]
[391621748,1760707841447,-500.53075342,0.00031273,5]
[391621749,1760707841457,-150.97,0.00031338,15]
[391621750,1760707841467,-150.97,0.00031438,15]
[391621751,1760707841477,-57947.059563,0.00031496,2]
[391621752,1760707841493,-413.68744436,0.00031496,2]
[391621753,1760707841503,-512.39757621,0.00031505,5]
[391621754,1760707841512,-500.0,0.00031505,5]
[391621755,1760707841522,-500.0,0.00031505,5]
[391621756,1760707841532,-500.0,0.00031505,5]
[391621757,1760707841542,-500.0,0.00031506,5]
[391621758,1760707841551,-500.0,0.00031506,5]
[391621759,1760707841561,-330.70320169,0.00031506,5]
[391621760,1760707841571,-500.0,0.00031506,5]
[391621761,1760707841580,-3332.89,0.00031506,5]
[391621762,1760707841589,-500.0,0.00031506,5]
[391621763,1760707841599,-500.0,0.00031506,5]
[391621764,1760707841609,-500.0,0.00031506,5]
[391621765,1760707841618,-500.0,0.00031506,5]
[391621766,1760707841629,-500.0,0.00031506,5]
[391621767,1760707841639,-500.0,0.00031506,5]
[391621768,1760707841649,-850.53,0.00031506,2]
[391621769,1760707841658,-500.0,0.00031506,5]
[391621770,1760707841668,-500.0,0.00031506,5]
[391621771,1760707841677,-500.0,0.00031506,5]
[391621772,1760707841687,-578.95,0.00031506,5]
[391621773,1760707841696,-500.0,0.00031506,5]
[391621774,1760707841706,-557.47,0.00031506,2]
[391621775,1760707841716,-3604.28,0.00031506,5]
[391621776,1760707841725,-500.0,0.00031506,5]
[391621777,1760707841743,-500.0,0.00031506,5]
[391621778,1760707841752,-500.0,0.00031506,5]
[391621779,1760707841762,-500.0,0.00031506,5]
[391621780,1760707841772,-500.0,0.00031506,5]
[391621781,1760707841782,-594.41,0.00031506,5]
[391621782,1760707841792,-729.16,0.00031506,5]
[391621783,1760707841802,-641.78,0.00031506,3]
[391621784,1760707841812,-500.0,0.00031506,5]
[391621785,1760707841822,-500.0,0.00031506,5]
[391621786,1760707841831,-500.0,0.00031506,5]
[391621787,1760707841841,-500.0,0.00031506,5]
[391621788,1760707841850,-355.415638,0.00031506,5]
[391621789,1760707841860,-521.27,0.00031506,5]
[391621790,1760707841869,-500.0,0.00031506,5]
[391621791,1760707841878,-1522.15,0.00031506,5]
[391621792,1760707841888,-150.97,0.00031538,15]
[391621793,1760707841897,-260.0,0.00031548,2]
[391621794,1760707841906,-1656.08,0.0003177,3]
[391621795,1760707841915,-828.04,0.0003177,3]
[391621796,1760707841924,-414.02,0.0003177,3]
[391621797,1760707841934,-500.0,0.00031779,5]
[391621798,1760707841943,-500.0,0.00031779,5]
[391621799,1760707841952,-227.53502937,0.00031779,5]
[391621800,1760707841962,-524.51127157,0.0003178,5]
[391621801,1760707841971,-500.0,0.0003178,5]
[391621802,1760707841985,-500.0,0.0003178,5]
[391621803,1760707841994,-3332.89,0.0003178,5]
[391621804,1760707842003,-500.0,0.0003178,5]
[391621805,1760707842012,-500.0,0.0003178,5]
[391621806,1760707842022,-500.0,0.0003178,5]
[391621807,1760707842031,-500.0,0.0003178,5]
[391621808,1760707842040,-617.31,0.0003178,5]
[391621809,1760707842049,-500.0,0.0003178,5]
[391621810,1760707842058,-850.53,0.0003178,2]
[391621811,1760707842067,-279.53153856,0.0003178,5]
[391621812,1760707842077,-500.0,0.0003178,5]
[391621813,1760707842086,-500.0,0.0003178,5]
[391621814,1760707842095,-578.95,0.0003178,5]
[391621815,1760707842105,-500.0,0.0003178,5]
[391621816,1760707842115,-557.47,0.0003178,2]
[391621817,1760707842125,-3604.28,0.0003178,5]
[391621818,1760707842134,-500.0,0.0003178,5]
[391621819,1760707842143,-519.03735088,0.0003178,5]
[391621820,1760707842153,-500.0,0.0003178,5]
[391621821,1760707842162,-500.0,0.0003178,5]
[391621822,1760707842171,-500.0,0.0003178,5]
[391621823,1760707842180,-594.41,0.0003178,5]
[391621824,1760707842190,-729.16,0.0003178,5]
[391621825,1760707842199,-641.78,0.0003178,3]
[391621826,1760707842209,-500.0,0.0003178,5]
[391621827,1760707842219,-500.0,0.0003178,5]
[391621828,1760707842231,-500.0,0.0003178,5]
[391621829,1760707842241,-500.0,0.0003178,5]
[391621830,1760707842256,-521.27,0.0003178,5]
[391621831,1760707842265,-500.0,0.0003178,5]
[391621832,1760707842275,-1522.15,0.0003178,5]
[391621833,1760707842286,-2204.79368685,0.00031789,2]
[391621834,1760707842295,-436.24886388,0.00031821,5]
[391621835,1760707842305,-723.59656861,0.0003204,2]
[391621836,1760707842316,-1000.0,0.0003204,2]
[391621837,1760707842326,-1000.0,0.0003204,2]
[391621838,1760707842336,-1000.0,0.0003204,2]
[391621839,1760707842345,-1000.0,0.0003204,2]
[391621840,1760707842355,-1000.0,0.0003204,2]
[391621841,1760707842364,-1000.0,0.0003204,2]
[391621842,1760707842373,-1000.0,0.0003204,2]
[391621843,1760707842383,-1000.0,0.0003204,2]
[391621844,1760707842392,-1000.0,0.0003204,2]
[391621845,1760707842488,-1000.0,0.0003204,2]
[391621846,1760707842498,-1000.0,0.0003204,2]
[391621847,1760707842508,-1000.0,0.0003204,2]
[391621848,1760707842518,-1000.0,0.0003204,2]
[391621849,1760707842527,-1000.0,0.0003204,2]
[391621850,1760707842537,-1000.0,0.0003204,2]
[391621851,1760707842546,-1000.0,0.0003204,2]
[391621852,1760707842555,-1000.0,0.0003204,2]
[391621853,1760707842563,-1000.0,0.0003204,2]
[391621854,1760707842572,-1000.0,0.0003204,2]
[391621855,1760707842582,-1000.0,0.0003204,2]
[391621856,1760707842591,-57947.059563,0.00032044,2]
[391621857,1760707842600,-413.68744436,0.00032044,2]
[391621858,1760707842609,-500.0,0.00032053,5]
[391621859,1760707842619,-500.0,0.00032053,5]
[391621860,1760707842630,-500.0,0.00032054,5]
[391621861,1760707842638,-500.0,0.00032054,5]
[391621862,1760707842648,-3332.89,0.00032054,5]
[391621863,1760707842658,-500.0,0.00032054,5]
[391621864,1760707842667,-500.0,0.00032054,5]
[391621865,1760707842676,-500.0,0.00032054,5]
[391621866,1760707842686,-500.0,0.00032054,5]
[391621867,1760707842695,-500.0,0.00032054,5]
[391621868,1760707842705,-850.53,0.00032054,2]
[391621869,1760707842714,-500.0,0.00032054,5]
[391621870,1760707842723,-500.0,0.00032054,5]
[391621871,1760707842736,-578.95,0.00032054,5]
[391621872,1760707842745,-500.0,0.00032054,5]
[391621873,1760707842755,-557.47,0.00032054,2]
[391621874,1760707842764,-3604.28,0.00032054,5]
[391621875,1760707842773,-500.0,0.00032054,5]
[391621876,1760707842782,-500.0,0.00032054,5]
[391621877,1760707842791,-500.0,0.00032054,5]
[391621878,1760707842800,-361.84138332,0.00032054,5]
[391621879,1760707842809,-594.41,0.00032054,5]
[391621880,1760707842819,-729.16,0.00032054,5]
[391621881,1760707842828,-641.78,0.00032054,3]
[391621882,1760707842837,-500.0,0.00032054,5]
[391621883,1760707842846,-642.15095301,0.00032054,5]
[391621884,1760707842855,-500.0,0.00032054,5]
[391621885,1760707842864,-500.0,0.00032054,5]
[391621886,1760707842873,-521.27,0.00032054,5]
[391621887,1760707842883,-500.0,0.00032054,5]
[391621888,1760707842891,-1522.15,0.00032054,5]
[391621889,1760707842900,-445.87543211,0.00032096,2]
[391621890,1760707842910,-2027.98,0.000323,2]
[391621891,1760707842919,-150.0,0.00032317,2]
[391621892,1760707842928,-500.0,0.00032327,5]
[391621893,1760707842938,-500.0,0.00032327,5]
[391621894,1760707842947,-500.0,0.00032328,5]
[391621895,1760707842956,-500.0,0.00032328,5]
[391621896,1760707842966,-3332.89,0.00032328,5]
[391621897,1760707842975,-500.0,0.00032328,5]
[391621898,1760707842988,-500.0,0.00032328,5]
[391621899,1760707842998,-500.0,0.00032328,5]
[391621900,1760707843007,-500.0,0.00032328,5]
[391621901,1760707843016,-500.0,0.00032328,5]
[391621902,1760707843025,-850.53,0.00032328,2]
[391621903,1760707843035,-500.0,0.00032328,5]
[391621904,1760707843044,-500.0,0.00032328,5]
[391621905,1760707843053,-578.95,0.00032328,5]
[391621906,1760707843063,-500.0,0.00032328,5]
[391621907,1760707843072,-557.47,0.00032328,2]
[391621908,1760707843082,-3604.28,0.00032328,5]
[391621909,1760707843091,-500.0,0.00032328,5]
[391621910,1760707843101,-500.0,0.00032328,5]
[391621911,1760707843110,-500.0,0.00032328,5]
[391621912,1760707843119,-594.41,0.00032328,5]
[391621913,1760707843128,-729.16,0.00032328,5]
[391621914,1760707843138,-641.78,0.00032328,3]
[391621916,1760707843147,-500.0,0.00032328,5]
[391621918,1760707843156,-500.0,0.00032328,5]
[391621919,1760707843165,-500.0,0.00032328,5]
[391621920,1760707843174,-521.27,0.00032328,5]
[391621921,1760707843183,-500.0,0.00032328,5]
[391621922,1760707843192,-1522.15,0.00032328,5]
[391621923,1760707843202,-1962.0,0.00032421,7]
[391621924,1760707843211,-2204.79368685,0.00032447,2]
[391621925,1760707843221,-1844.95357477,0.00032491,2]
[391621926,1760707843235,-57947.059563,0.00032572,2]
[391621927,1760707843246,-413.68744436,0.00032572,2]
[391621928,1760707843256,-500.0,0.00032601,5]
[391621929,1760707843265,-500.0,0.00032601,5]
[391621931,1760707843275,-500.0,0.00032602,5]
[391621933,1760707843285,-500.0,0.00032602,5]
[391621935,1760707843295,-3332.89,0.00032602,5]
[391621937,1760707843305,-500.0,0.00032602,5]
[391621938,1760707843315,-500.0,0.00032602,5]
[391621939,1760707843326,-500.0,0.00032602,5]
[391621940,1760707843335,-500.0,0.00032602,5]
[391621941,1760707843344,-500.0,0.00032602,5]
[391621942,1760707843353,-850.53,0.00032602,2]
[391621943,1760707843364,-265.23841133,0.00032602,5]
[391621944,1760707843376,-500.0,0.00032602,5]
[391621946,1760707843386,-578.95,0.00032602,5]
[391621949,1760707843396,-500.0,0.00032602,5]
[391621950,1760707843409,-557.47,0.00032602,2]
[391621951,1760707843422,-3604.28,0.00032602,5]
[391621952,1760707843433,-345.83566405,0.00032602,5]
[391621953,1760707843448,-500.0,0.00032602,5]
[391621954,1760707843461,-500.0,0.00032602,5]
[391621955,1760707843475,-594.41,0.00032602,5]
[391621956,1760707843491,-729.16,0.00032602,5]
[391621957,1760707843508,-641.78,0.00032602,3]
[391621958,1760707843518,-500.0,0.00032602,5]
[391621959,1760707843527,-500.0,0.00032602,5]
[391621960,1760707843536,-500.0,0.00032602,5]
[391621961,1760707843545,-521.27,0.00032602,5]
[391621962,1760707843554,-500.0,0.00032602,5]
[391621963,1760707843564,-1522.15,0.00032602,5]